bitfinex/quotes_BTCUSD_20240718
["timestamp","ask_amount","ask_price","bid_price","bid_amount"]
[1721320634314,1.12094919,63843.0,63842.0,0.1947]
[1721320634536,1.096438,63843.0,63842.0,0.1947]
[1721320634744,1.12094996,63843.0,63842.0,0.1947]
[1721320635168,1.096438,63843.0,63842.0,0.1947]
[1721320635387,1.108438,63843.0,63842.0,0.1967]
[1721320636323,1.13295032,63843.0,63842.0,0.1967]
[1721320636527,1.15495155,63843.0,63842.0,0.1967]
[1721320636795,1.108438,63843.0,63842.0,0.1967]
[1721320638170,1.13295054,63843.0,63842.0,0.1967]
[1721320638386,1.15450097,63843.0,63842.0,0.1967]
[1721320641052,0.012,63843.0,63842.0,0.21637]
[1721320643619,0.012,63843.0,63842.0,0.1967]
[1721320645108,0.006,63843.0,63842.0,0.1957]
[1721320645538,0.01,63843.0,63842.0,0.1957]
[1721320645970,0.01,63843.0,63842.0,0.1947]
[1721320646416,0.01,63843.0,63842.0,0.2308348]
[1721320646636,0.008,63843.0,63842.0,0.1957]
[1721320646858,0.164634,63843.0,63842.0,0.1957]
[1721320647094,0.164634,63843.0,63842.0,0.1967]
[1721320647308,1.104438,63843.0,63842.0,0.1967]
[1721320648214,1.15213443,63843.0,63842.0,0.1967]
[1721320648437,1.12895073,63843.0,63842.0,0.1967]
[1721320648860,1.15216307,63843.0,63842.0,0.1967]
[1721320649299,1.12895073,63843.0,63842.0,0.1967]
[1721320649511,1.12895073,63843.0,63842.0,0.1137]
[1721320649922,1.1516238,63843.0,63842.0,0.1137]
[1721320651228,0.81568273,63843.0,63842.0,0.1137]
[1721320652726,0.83936484,63843.0,63842.0,0.1137]
[1721320654505,1.15263284,63843.0,63842.0,0.002]
[1721320654706,1.22275085,63843.0,63842.0,0.0515]
[1721320655367,1.21875085,63843.0,63842.0,0.0505]
[1721320655584,1.21875085,63843.0,63842.0,0.0495]
[1721320655585,1.21675085,63843.0,63842.0,0.0495]
[1721320656006,1.1474426,63843.0,63842.0,0.0505]
[1721320656217,1.1414426,63843.0,63842.0,0.0495]
[1721320656428,1.1514426,63843.0,63842.0,0.0495]
[1721320657079,1.22175085,63843.0,63842.0,0.0495]
[1721320657502,1.1514426,63843.0,63842.0,0.0495]
[1721320657740,0.05822398,63843.0,63842.0,0.1907]
[1721320658021,0.03371125,63843.0,63842.0,0.21008326]
[1721320658265,0.01,63843.0,63842.0,0.21008326]
[1721320658475,0.01,63843.0,63842.0,0.834374]
[1721320658705,0.01,63843.0,63842.0,0.884374]
[1721320658923,0.01,63843.0,63842.0,0.834374]
[1721320659340,0.01,63843.0,63842.0,0.884374]
[1721320659341,0.005,63843.0,63842.0,0.884374]
[1721320659781,0.005,63843.0,63842.0,1.51192]
[1721320660005,0.00083,63844.0,63843.0,0.718202]
[1721320660249,0.00083,63844.0,63843.0,1.88372776]
[1721320660504,0.00083,63844.0,63843.0,1.91510776]
[1721320660759,0.00083,63865.0,63864.0,0.0495]
[1721320660960,0.00083,63865.0,63864.0,0.1905]
[1721320662258,0.00083,63865.0,63864.0,0.1955]
[1721320662468,0.00083,63865.0,63864.0,0.2307093]
[1721320663508,0.00083,63865.0,63864.0,0.1955]
[1721320663719,0.00083,63865.0,63864.0,0.2005]
[1721320666998,0.15741,63865.0,63864.0,0.2005]
[1721320667458,0.00083,63865.0,63864.0,0.2005]
[1721320674416,0.00083,63865.0,63864.0,0.1905]
[1721320674850,0.00483,63865.0,63864.0,0.1905]
[1721320675065,0.00283,63865.0,63864.0,0.1905]
[1721320675280,0.00041446,63865.0,63864.0,0.1905]
[1721320675501,0.00041446,63865.0,63864.0,0.1935]
[1721320677303,0.00041446,63865.0,63864.0,0.1975]
[1721320678429,0.15699446,63865.0,63864.0,0.1975]
[1721320678857,0.00041446,63865.0,63864.0,0.1975]
[1721320680069,0.00041446,63865.0,63864.0,0.1945]
[1721320680283,0.00241446,63865.0,63864.0,0.1905]
[1721320680683,0.00441446,63865.0,63864.0,0.1905]
[1721320680965,0.00241446,63865.0,63864.0,0.1905]
[1721320681393,0.00241446,63865.0,63864.0,0.1975]
[1721320681825,0.15899446,63865.0,63864.0,0.1975]
[1721320682047,0.78531446,63865.0,63864.0,0.0565]
[1721320682880,0.47215446,63865.0,63864.0,0.0565]
[1721320683099,0.47215446,63865.0,63864.0,0.0535]
[1721320683309,0.47415446,63865.0,63864.0,0.0535]
[1721320683784,0.47215446,63865.0,63864.0,0.0535]
[1721320684197,0.47215446,63865.0,63864.0,0.0565]
[1721320688646,0.4947366,63865.0,63864.0,0.0565]
[1721320689090,0.0249966,63865.0,63864.0,0.44808374]
[1721320689312,0.00241446,63865.0,63864.0,0.34738174]
[1721320689535,0.00241446,63865.0,63864.0,0.42155653]
[1721320689746,0.00341446,63865.0,63864.0,0.57813853]
[1721320689975,0.00341446,63865.0,63864.0,0.70358868]
[1721320690637,0.00341446,63865.0,63864.0,1.01675368]
[1721320690844,0.00041446,63865.0,63864.0,0.69958868]
[1721320691056,0.00141446,63865.0,63864.0,0.69958868]
[1721320691265,0.00141446,63865.0,63864.0,0.70258868]
[1721320691728,0.00141446,63865.0,63864.0,0.70658868]
[1721320691932,0.00141446,63865.0,63864.0,1.01975368]
[1721320692616,0.00141446,63865.0,63864.0,1.33383168]
[1721320693053,0.00141446,63865.0,63864.0,1.02066668]
[1721320693986,0.00141446,63865.0,63864.0,0.70750168]
[1721320694493,0.00141446,63865.0,63864.0,1.38383168]
[1721320695147,0.00141446,63865.0,63864.0,1.40683168]
[1721320695374,0.00141446,63865.0,63864.0,1.71999668]
[1721320696014,0.00141446,63865.0,63864.0,2.13316168]
[1721320696298,0.00834,63871.0,63864.0,2.13316168]
[1721320696299,0.00834,63871.0,63870.0,1.339876]
[1721320696547,0.00083,63898.0,63885.0,0.663493]
[1721320696753,0.00083,63898.0,63885.0,1.20811153]
[1721320696977,0.15733,63898.0,63885.0,1.20811153]
[1721320697402,0.156502,63897.0,63885.0,1.20811153]
[1721320697658,0.156507,63895.0,63885.0,0.89504953]
[1721320697864,0.156502,63897.0,63885.0,0.89504953]
[1721320698081,0.313833,63898.0,63885.0,0.89504953]
[1721320698082,0.00934,63886.0,63885.0,0.43245653]
[1721320698291,0.00934,63886.0,63885.0,0.45183979]
[1721320698543,0.00934,63886.0,63885.0,0.60837079]
[1721320699036,0.01034,63886.0,63885.0,0.93543279]
[1721320699475,0.01034,63886.0,63885.0,0.94943279]
[1721320699688,0.01034,63886.0,63885.0,0.63637079]
[1721320699901,0.00934,63886.0,63885.0,0.60837079]
[1721320700361,0.00834,63886.0,63885.0,0.60137079]
[1721320700580,0.00834,63886.0,63885.0,0.44483979]
[1721320700798,0.00934,63886.0,63885.0,0.61337079]
[1721320701020,0.00934,63886.0,63885.0,0.92643279]
[1721320701235,0.00834,63886.0,63885.0,0.91443279]
[1721320701459,0.00934,63886.0,63885.0,0.92843279]
[1721320701675,0.00934,63886.0,63885.0,1.28949479]
[1721320702093,0.00934,63886.0,63885.0,1.29149479]
[1721320702303,0.00834,63886.0,63885.0,1.27749479]
[1721320702731,0.00934,63886.0,63885.0,1.29149479]
[1721320702963,0.00934,63886.0,63885.0,1.24149479]
[1721320703175,0.01134,63886.0,63885.0,1.31749479]
[1721320704588,0.01134,63886.0,63885.0,1.26749479]
[1721320705263,0.01134,63886.0,63885.0,0.95443279]
[1721320705488,0.479925,63886.0,63885.0,0.22027479]
[1721320705714,0.793982,63886.0,63885.0,0.16467479]
[1721320705953,0.836982,63886.0,63885.0,0.16467479]
[1721320706895,0.836982,63886.0,63885.0,0.15467479]
[1721320706896,0.835982,63886.0,63885.0,0.15467479]
[1721320707113,1.229439,63886.0,63885.0,0.01]
[1721320707325,1.230439,63886.0,63885.0,0.023]
[1721320707998,2.34565668,63886.0,63885.0,0.023]
[1721320708214,2.34565668,63886.0,63885.0,0.0725]
[1721320708215,1.643496,63886.0,63885.0,0.0725]
[1721320708428,1.329439,63886.0,63885.0,0.0625]
[1721320708655,0.00083,63898.0,63897.0,0.0495]
[1721320708882,0.00083,63898.0,63897.0,0.26667479]
[1721320709105,0.157329,63898.0,63897.0,0.12667479]
[1721320709322,0.00083,63898.0,63897.0,0.12667479]
[1721320710200,0.00083,63898.0,63897.0,0.14067479]
[1721320710201,0.00183,63898.0,63897.0,0.14067479]
[1721320711925,0.472327,63898.0,63897.0,0.15467479]
[1721320712893,0.159329,63898.0,63897.0,0.15467479]
[1721320713135,0.00283,63898.0,63897.0,0.15467479]
[1721320713587,0.00283,63898.0,63897.0,0.30905653]
[1721320714786,0.00283,63898.0,63897.0,0.15467479]
[1721320716429,0.00283,63898.0,63897.0,0.30905653]
[1721320717511,0.00283,63898.0,63897.0,0.44935653]
[1721320719694,0.00283,63898.0,63897.0,0.60585753]
[1721320720126,0.00283,63898.0,63897.0,1.54486653]
[1721320720372,0.00283,63898.0,63897.0,1.59486653]
[1721320720623,0.00283,63898.0,63897.0,1.54486653]
[1721320720836,0.00283,63898.0,63897.0,0.91886053]
[1721320721280,0.00283,63898.0,63897.0,1.23186353]
[1721320722703,0.00283,63898.0,63897.0,1.28186353]
[1721320722920,0.00283,63898.0,63897.0,1.59486653]
[1721320723136,0.00283,63898.0,63897.0,1.54486653]
[1721320725213,0.00283,63898.0,63897.0,1.59486653]
[1721320725949,0.00283,63898.0,63897.0,1.54486653]
[1721320727125,0.00283,63898.0,63897.0,1.09156353]
[1721320730196,0.00283,63898.0,63897.0,0.15467479]
[1721320730441,0.282329,63898.0,63897.0,0.15467479]
[1721320730712,0.30682148,63898.0,63897.0,0.15467479]
[1721320731878,0.61981948,63898.0,63897.0,0.15467479]
[1721320733038,0.61881948,63898.0,63897.0,0.14067479]
[1721320733469,0.61881948,63898.0,63897.0,0.15467479]
[1721320733708,0.61781948,63898.0,63897.0,0.14067479]
[1721320733926,0.61881948,63898.0,63897.0,0.15467479]
[1721320734170,0.30582148,63898.0,63897.0,0.15467479]
[1721320734626,0.02632248,63898.0,63897.0,0.15467479]
[1721320734881,0.00183,63898.0,63897.0,0.15467479]
[1721320740563,0.158329,63898.0,63897.0,0.15467479]
[1721320740787,0.00183,63898.0,63897.0,0.15467479]
[1721320741520,0.158329,63898.0,63897.0,0.15467479]
[1721320742235,0.00183,63898.0,63897.0,0.15467479]
[1721320742675,0.18282057,63898.0,63897.0,0.15467479]
[1721320743118,0.61591857,63898.0,63897.0,0.10517479]
[1721320743359,0.95161184,63898.0,63897.0,0.15467479]
[1721320743788,0.95161257,63898.0,63897.0,0.15467479]
[1721320744240,0.04901757,63898.0,63897.0,0.15467479]
[1721320744460,0.02632157,63898.0,63897.0,0.29287479]
[1721320744718,0.00183,63898.0,63897.0,0.29287479]
[1721320745621,0.02632041,63898.0,63897.0,0.29287479]
[1721320745868,0.02632041,63898.0,63897.0,0.9198902]
[1721320746055,0.00183,63898.0,63897.0,0.91676053]
[1721320747445,0.00183,63898.0,63897.0,0.60375753]
[1721320747668,0.00183,63898.0,63897.0,0.21637479]
[1721320748527,0.00183,63898.0,63897.0,0.37287579]
[1721320748742,0.00183,63898.0,63897.0,0.21637479]
[1721320749405,0.00183,63898.0,63897.0,0.37287579]
[1721320749589,0.00183,63898.0,63897.0,0.52725753]
[1721320749894,0.00183,63898.0,63897.0,0.84026053]
[1721320750124,0.00183,63898.0,63897.0,1.15326353]
[1721320750754,0.00183,63898.0,63897.0,0.84026053]
[1721320752642,0.00183,63898.0,63897.0,1.28156353]
[1721320752876,0.00183,63898.0,63897.0,1.59456653]
[1721320753100,0.00183,63898.0,63897.0,1.23156353]
[1721320753330,0.00183,63898.0,63897.0,1.28156353]
[1721320753845,0.00183,63898.0,63897.0,1.59456653]
[1721320754077,0.00183,63898.0,63897.0,1.28156353]
[1721320754291,0.00183,63898.0,63897.0,1.59456653]
[1721320754508,0.00183,63898.0,63897.0,1.28156353]
[1721320754992,0.00183,63898.0,63897.0,1.59456653]
[1721320755444,0.00183,63898.0,63897.0,1.61756653]
[1721320755631,0.00183,63898.0,63897.0,1.64894653]
[1721320756771,0.00083,63898.0,63897.0,1.29894353]
[1721320757214,0.00183,63898.0,63897.0,1.31294353]
[1721320757721,0.00183,63898.0,63897.0,1.26294353]
[1721320757929,0.00183,63898.0,63897.0,1.31294353]
[1721320758403,0.00183,63898.0,63897.0,1.62594653]
[1721320758612,0.00183,63898.0,63897.0,1.61964961]
[1721320759048,0.00183,63898.0,63897.0,1.60564961]
[1721320759286,0.00183,63898.0,63897.0,1.61964961]
[1721320760188,0.00183,63898.0,63897.0,1.64264961]
[1721320760685,0.00183,63898.0,63897.0,1.61964961]
[1721320760915,0.00183,63898.0,63897.0,0.44275961]
[1721320761135,0.00183,63898.0,63897.0,0.14837787]
[1721320762013,0.00083,63898.0,63897.0,0.12037787]
[1721320762253,0.00083,63898.0,63897.0,0.13337787]
[1721320762525,0.00083,63898.0,63897.0,0.14737787]
[1721320762707,0.470327,63898.0,63897.0,0.14737787]
[1721320765324,0.470327,63898.0,63897.0,0.13337787]
[1721320765601,0.470327,63898.0,63897.0,0.14737787]
[1721320765852,0.470327,63898.0,63897.0,0.13437787]
[1721320766087,0.470327,63898.0,63897.0,0.14637787]
[1721320766978,0.470327,63898.0,63897.0,0.13437787]
[1721320767416,0.470327,63898.0,63897.0,0.14137787]
[1721320767861,0.470327,63898.0,63897.0,0.12737787]
[1721320768088,0.470327,63898.0,63897.0,0.13637787]
[1721320769233,0.157329,63898.0,63897.0,0.13637787]
[1721320769903,0.470327,63898.0,63897.0,0.13637787]
[1721320770800,0.783325,63898.0,63897.0,0.13637787]
[1721320772122,1.096323,63898.0,63897.0,0.08687787]
[1721320772347,1.1405029,63898.0,63897.0,0.08687787]
[1721320772570,1.1405029,63898.0,63897.0,0.13637787]
[1721320772855,1.1405029,63898.0,63897.0,0.08687787]
[1721320773077,1.14073403,63898.0,63897.0,0.33637787]
[1721320773321,1.14073403,63898.0,63897.0,0.27987787]
[1721320773779,1.14073403,63898.0,63897.0,0.32937787]
[1721320774230,1.14073403,63898.0,63897.0,0.33437787]
[1721320775175,1.14073403,63898.0,63897.0,0.32537787]
[1721320775413,0.82773603,63898.0,63897.0,0.33237787]
[1721320775641,0.51473803,63898.0,63897.0,0.33237787]
[1721320776121,0.82773603,63898.0,63897.0,0.33237787]
[1721320776385,1.33642836,63898.0,63897.0,0.2615]
[1721320776636,0.82788363,63898.0,63897.0,0.212]
[1721320776872,0.82788363,63898.0,63897.0,0.2615]
[1721320777799,1.14088163,63898.0,63897.0,0.2615]
[1721320778038,1.14088163,63898.0,63897.0,0.212]
[1721320778277,1.37254242,63898.0,63897.0,0.2615]
[1721320778965,1.37254242,63898.0,63897.0,0.212]
[1721320779208,1.22058163,63898.0,63897.0,0.2615]
[1721320779438,1.21944368,63898.0,63897.0,0.2615]
[1721320780369,0.82674568,63898.0,63897.0,0.2615]
[1721320780557,0.80781739,63898.0,63897.0,0.2615]
[1721320780829,0.783325,63898.0,63897.0,0.2615]
[1721320781050,0.80781622,63898.0,63897.0,0.2615]
[1721320781274,0.783325,63898.0,63897.0,0.2615]
[1721320781749,0.00083,63898.0,63897.0,0.2615]
[1721320782234,0.157329,63898.0,63897.0,0.2615]
[1721320782493,0.18181987,63898.0,63897.0,0.2615]
[1721320782722,0.470327,63898.0,63897.0,0.2615]
[1721320782950,0.49481821,63898.0,63897.0,0.2615]
[1721320783655,0.57787406,63898.0,63897.0,0.2615]
[1721320783897,1.21706651,63898.0,63897.0,0.212]
[1721320785072,1.26006651,63898.0,63897.0,0.212]
[1721320785547,1.24151421,63898.0,63897.0,0.212]
[1721320785766,1.72683823,63898.0,63897.0,0.212]
[1721320786210,1.88121997,63898.0,63897.0,0.212]
[1721320786426,1.98121997,63898.0,63897.0,0.212]
[1721320786652,2.03614409,63898.0,63897.0,0.212]
[1721320786865,1.98121997,63898.0,63897.0,0.212]
[1721320787836,1.98421997,63898.0,63897.0,0.206]
[1721320788541,1.98421997,63898.0,63897.0,0.201]
[1721320788985,1.98344139,63898.0,63897.0,0.201]
[1721320789201,1.98744139,63898.0,63897.0,0.202]
[1721320789433,1.71239182,63898.0,63897.0,0.202]
[1721320789660,0.93201408,63898.0,63897.0,0.2515]
[1721320790121,0.93501408,63898.0,63897.0,0.2525]
[1721320790359,1.06208952,63898.0,63897.0,0.203]
[1721320790581,1.36508752,63898.0,63897.0,0.2]
[1721320791022,1.64446926,63898.0,63897.0,0.2]
[1721320791494,1.64846926,63898.0,63897.0,0.2]
[1721320791688,1.70297406,63898.0,63897.0,0.2]
[1721320791927,1.64846926,63898.0,63897.0,0.2]
[1721320792578,1.64889502,63898.0,63897.0,0.2]
[1721320792805,1.24543784,63898.0,63897.0,0.2]
[1721320793936,0.93243984,63898.0,63897.0,0.2495]
[1721320795836,0.93266161,63898.0,63897.0,0.2495]
[1721320796069,0.93266161,63898.0,63897.0,0.24320308]
[1721320796318,0.93266161,63898.0,63897.0,0.38390308]
[1721320796319,0.05016661,63898.0,63897.0,0.38390308]
[1721320796561,0.05016661,63898.0,63897.0,0.46107787]
[1721320796799,0.00783,63898.0,63897.0,1.08496361]
[1721320797268,0.00483,63898.0,63897.0,0.46107787]
[1721320797514,0.00783,63898.0,63897.0,0.46107787]
[1721320797766,0.00383,63898.0,63897.0,0.46107787]
[1721320798227,0.00483,63898.0,63897.0,0.46107787]
[1721320798514,0.00083,63898.0,63897.0,0.46107787]
[1721320798753,0.00083,63898.0,63897.0,1.09896361]
[1721320798998,0.00083,63898.0,63897.0,0.79896061]
[1721320799232,0.00083,63898.0,63897.0,0.64245961]
[1721320800381,0.00083,63898.0,63897.0,0.62945961]
[1721320800614,0.00083,63898.0,63897.0,0.61545961]
[1721320800861,0.00083,63898.0,63897.0,0.62645961]
[1721320801355,0.00083,63898.0,63897.0,0.64045961]
[1721320802018,0.00083,63898.0,63897.0,0.48907787]
[1721320802247,0.80781399,63898.0,63897.0,0.48907787]
[1721320802499,0.80781399,63898.0,63897.0,0.22170308]
[1721320802500,1.50087994,63898.0,63897.0,0.22170308]
[1721320802749,2.28149121,63898.0,63897.0,0.22170308]
[1721320803195,2.28199121,63898.0,63897.0,0.22170308]
[1721320803689,2.28199121,63898.0,63897.0,0.20770308]
[1721320803917,2.28149121,63898.0,63897.0,0.19370308]
[1721320804147,2.28449121,63898.0,63897.0,0.19370308]
[1721320804394,2.2675674,63898.0,63897.0,0.19370308]
[1721320804622,2.28264142,63898.0,63897.0,0.19370308]
[1721320804850,1.408626,63892.0,63891.0,0.000913]
[1721320805093,1.8220116,63892.0,63891.0,0.000913]
[1721320805329,1.70483839,63892.0,63891.0,0.000913]
[1721320805770,1.8220213,63892.0,63891.0,0.000913]
[1721320806522,1.70483839,63892.0,63891.0,0.000913]
[1721320806759,1.86518796,63892.0,63891.0,0.000913]
[1721320807215,1.86518796,63892.0,63891.0,0.001913]
[1721320807216,1.71583839,63892.0,63891.0,0.001913]
[1721320807440,1.83303537,63892.0,63891.0,0.001913]
[1721320807679,1.83366748,63892.0,63891.0,0.001913]
[1721320807896,1.7164705,63892.0,63891.0,0.001913]
[1721320808112,1.87082007,63892.0,63891.0,0.001913]
[1721320808576,2.30644807,63892.0,63891.0,0.001913]
[1721320808819,2.3844267,63892.0,63891.0,0.001913]
[1721320809075,2.3839267,63892.0,63891.0,0.001913]
[1721320809558,2.3784267,63892.0,63891.0,0.001913]
[1721320809799,2.3779267,63892.0,63891.0,0.001913]
[1721320810017,2.21857713,63892.0,63891.0,0.000913]
[1721320810496,2.15662473,63892.0,63891.0,0.001913]
[1721320810721,2.37614532,63892.0,63891.0,0.002913]
[1721320810959,2.53049489,63892.0,63891.0,0.002913]
[1721320811196,2.53049563,63892.0,63891.0,0.002913]
[1721320811461,2.38990953,63892.0,63891.0,0.002913]
[1721320811696,2.53096999,63892.0,63891.0,0.002913]
[1721320811912,2.39040953,63892.0,63891.0,0.002913]
[1721320812590,2.39040953,63892.0,63891.0,1e-06]
[1721320812591,2.86863753,63892.0,63891.0,1e-06]
[1721320813304,1.909409,63879.0,63878.0,0.07717479]
[1721320813546,2.30987973,63879.0,63878.0,0.07717479]
[1721320813789,2.38303881,63879.0,63878.0,0.07717479]
[1721320814237,2.64098021,63879.0,63878.0,0.07717479]
[1721320814266,2.69612752,63879.0,63878.0,0.07717479]
[1721320814465,2.91286797,63879.0,63878.0,0.07717479]
[1721320814703,3.1983309,63879.0,63878.0,0.07817479]
[1721320816311,3.2093309,63879.0,63878.0,0.07817479]
[1721320816764,3.20989073,63879.0,63878.0,0.07817479]
[1721320816992,3.32684493,63879.0,63878.0,0.07817479]
[1721320817436,3.32684493,63879.0,63878.0,0.04686479]
[1721320817653,3.15434,63879.0,63878.0,0.01555479]
[1721320817891,3.37507636,63879.0,63878.0,7.9e-07]
[1721320818100,2.222693,63872.0,63871.0,0.04586258]
[1721320818325,2.56859243,63872.0,63871.0,0.04586258]
[1721320818546,2.66859243,63872.0,63871.0,0.04586258]
[1721320819026,1.40922,63865.0,63864.0,0.07808779]
[1721320819513,1.74744143,63865.0,63864.0,0.07808779]
[1721320819519,1.13897769,63865.0,63864.0,0.12758779]
[1721320819744,1.13897769,63865.0,63864.0,0.27128779]
[1721320819745,1.19606,63865.0,63864.0,0.27128779]
[1721320821871,1.35040957,63865.0,63864.0,0.07808779]
[1721320822134,1.50579131,63865.0,63864.0,0.07908779]
[1721320822379,1.50579131,63865.0,63864.0,0.001913]
[1721320822380,2.15661981,63865.0,63864.0,0.001913]
[1721320822632,1.86261379,63865.0,63864.0,0.001913]
[1721320822865,1.84345981,63865.0,63864.0,0.001913]
[1721320823334,1.84345981,63865.0,63864.0,0.004913]
[1721320823584,1.70601446,63865.0,63864.0,0.004913]
[1721320823815,1.66560174,63865.0,63864.0,0.004913]
[1721320824050,1.66560174,63865.0,63864.0,0.068413]
[1721320824051,1.19906,63865.0,63864.0,0.068413]
[1721320824307,1.20006,63865.0,63864.0,0.113913]
[1721320824566,1.20006,63865.0,63864.0,0.064413]
[1721320824791,1.20006,63865.0,63864.0,0.190613]
[1721320825022,1.20006,63865.0,63864.0,0.141113]
[1721320825255,1.26783098,63865.0,63864.0,0.141113]
[1721320825479,1.26783098,63865.0,63864.0,0.041113]
[1721320825709,1.20006,63865.0,63864.0,0.041113]
[1721320826212,1.20006,63865.0,63864.0,0.042026]
[1721320826434,1.20006,63865.0,63864.0,0.091526]
[1721320826671,1.20006,63865.0,63864.0,0.042026]
[1721320826911,1.20006,63865.0,63864.0,0.04198337]
[1721320827393,1.23174323,63865.0,63864.0,0.04198337]
[1721320827847,1.20006,63865.0,63864.0,0.16865816]
[1721320828096,0.57374,63865.0,63864.0,0.16865816]
[1721320828354,0.004,63865.0,63864.0,0.16865816]
[1721320828602,0.004,63865.0,63864.0,0.23385816]
[1721320828840,0.16058,63865.0,63864.0,0.23385816]
[1721320829097,1.10006,63865.0,63864.0,0.23385816]
[1721320829786,0.7849,63865.0,63864.0,0.23385816]
[1721320830024,0.7859,63865.0,63864.0,0.23785816]
[1721320830256,0.7859,63865.0,63864.0,0.23385816]
[1721320830491,0.47274,63865.0,63864.0,0.23385816]
[1721320830721,0.47274,63865.0,63864.0,0.23485816]
[1721320831015,0.003,63865.0,63864.0,0.23485816]
[1721320831252,0.001,63865.0,63864.0,0.23485816]
[1721320831486,0.001,63865.0,63864.0,0.75560516]
[1721320831487,0.002,63865.0,63864.0,0.75560516]
[1721320831722,0.002,63865.0,63864.0,0.39244016]
[1721320831963,0.001,63865.0,63864.0,0.23485816]
[1721320832201,0.001,63865.0,63864.0,0.23765216]
[1721320832435,0.002,63865.0,63864.0,0.23585816]
[1721320833111,0.001,63865.0,63864.0,0.23485816]
[1721320833340,0.156568,63870.0,63869.0,0.1923]
[1721320834147,0.1,63873.0,63872.0,0.0495]
[1721320834386,0.569681,63873.0,63872.0,0.1921]
[1721320835313,0.882802,63873.0,63872.0,0.1921]
[1721320835552,0.9710814,63873.0,63872.0,0.1921]
[1721320835788,0.90182824,63873.0,63872.0,0.1921]
[1721320836009,0.882802,63873.0,63872.0,0.1921]
[1721320836238,0.90221647,63873.0,63872.0,0.1921]
[1721320836471,0.9267197,63873.0,63872.0,0.1921]
[1721320836717,0.9267197,63873.0,63869.0,0.0545]
[1721320836718,0.469704,63870.0,63869.0,0.0545]
[1721320837169,0.15438174,63870.0,63867.0,0.0603]
[1721320837410,0.15438174,63870.0,63867.0,0.1098]
[1721320837411,0.469717,63868.0,63867.0,0.1098]
[1721320837671,0.469717,63868.0,63864.0,0.07808779]
[1721320837672,0.19779767,63868.0,63864.0,0.07808779]
[1721320837924,0.7829,63865.0,63864.0,0.000913]
[1721320838180,1.52188937,63865.0,63864.0,0.000913]
[1721320838423,1.85955379,63865.0,63864.0,0.000913]
[1721320838879,1.99688317,63865.0,63864.0,0.001913]
[1721320839109,2.37554317,63865.0,63864.0,0.001913]
[1721320839572,1.85401767,63865.0,63864.0,0.001913]
[1721320839801,1.70701767,63865.0,63864.0,0.001913]
[1721320840094,1.23947593,63865.0,63864.0,0.001913]
[1721320840793,1.23947593,63865.0,63864.0,0.051413]
[1721320841021,1.39385767,63865.0,63864.0,0.000913]
[1721320841261,1.53029573,63865.0,63864.0,0.000913]
[1721320841497,1.54965242,63865.0,63864.0,0.000913]
[1721320841944,1.55865359,63865.0,63864.0,0.001913]
[1721320842167,1.56265359,63865.0,63864.0,0.000913]
[1721320842645,1.56065359,63865.0,63864.0,0.000913]
[1721320842868,1.57365359,63865.0,63864.0,0.000913]
[1721320843712,1.56065359,63865.0,63864.0,0.000913]
[1721320843980,1.57265359,63865.0,63864.0,0.000913]
[1721320844228,1.58365359,63865.0,63864.0,0.000913]
[1721320844705,1.42930402,63865.0,63864.0,0.000913]
[1721320845167,1.41730402,63865.0,63864.0,0.000913]
[1721320845417,1.42730402,63865.0,63864.0,0.001913]
[1721320845639,1.41430402,63865.0,63864.0,0.000913]
[1721320846103,1.88281359,63865.0,63864.0,0.000913]
[1721320846328,1.89445605,63865.0,63864.0,0.000913]
[1721320846851,1.42694648,63865.0,63864.0,0.000913]
[1721320847293,1.74010648,63865.0,63864.0,0.000913]
[1721320847988,1.73961539,63865.0,63864.0,0.000913]
[1721320848703,1.42645539,63865.0,63864.0,0.000913]
[1721320848949,1.42653505,63865.0,63864.0,0.000913]
[1721320849461,1.42653505,63865.0,63864.0,0.07808779]
[1721320850251,1.50217947,63865.0,63864.0,0.07808779]
[1721320850622,2.00217947,63865.0,63864.0,0.07808779]
[1721320851431,1.98359058,63865.0,63864.0,0.07808779]
[1721320851633,2.00217759,63865.0,63864.0,0.07808779]
[1721320851841,1.42653317,63865.0,63864.0,0.12758779]
[1721320852642,1.42653317,63865.0,63864.0,0.07808779]
[1721320854464,1.42645605,63865.0,63864.0,0.07808779]
[1721320857651,1.40794616,63865.0,63864.0,0.07808779]
[1721320857897,1.42671643,63865.0,63864.0,0.07808779]
[1721320858149,1.581066,63865.0,63864.0,0.07808779]
[1721320858399,1.894226,63865.0,63864.0,0.07808779]
[1721320858645,1.69834166,63865.0,63864.0,0.07808779]
[1721320859137,2.01150166,63865.0,63864.0,0.07808779]
[1721320859380,1.69834166,63865.0,63864.0,0.07808779]
[1721320859638,1.581896,63865.0,63864.0,0.07808779]
[1721320860100,1.42754643,63865.0,63864.0,0.07808779]
[1721320860818,1.42620758,63865.0,63864.0,0.07808779]
[1721320861497,1.48068258,63865.0,63864.0,0.07808779]
[1721320861724,1.48068258,63865.0,63864.0,0.000913]
[1721320861725,1.79384258,63865.0,63864.0,0.000913]
[1721320861953,1.97998573,63865.0,63864.0,0.000913]
[1721320862177,2.05177217,63865.0,63864.0,0.000913]
[1721320862372,2.36493217,63865.0,63864.0,0.000913]
[1721320863580,2.05177217,63865.0,63864.0,0.000913]
[1721320863829,2.52877217,63865.0,63864.0,0.000913]
[1721320865705,2.86493217,63865.0,63864.0,0.000913]
[1721320866384,3.09143217,63865.0,63864.0,0.000913]
[1721320866602,3.09143844,63865.0,63864.0,0.000913]
[1721320867787,3.09093844,63865.0,63864.0,0.000913]
[1721320868266,3.40459844,63865.0,63864.0,1e-06]
[1721320868503,3.09143844,63865.0,63864.0,1e-06]
[1721320869137,3.24975267,63865.0,63864.0,1e-06]
[1721320869588,3.03762195,63865.0,63864.0,1e-06]
[1721320869820,3.40591245,63865.0,63864.0,1e-06]
[1721320870040,3.09275245,63865.0,63864.0,1e-06]
[1721320870733,3.40591245,63865.0,63864.0,1e-06]
[1721320872330,2.93790288,63865.0,63864.0,1e-06]
[1721320872757,2.93828762,63865.0,63864.0,1e-06]
[1721320872995,3.09650183,63865.0,63864.0,1e-06]
[1721320873225,2.93878762,63865.0,63864.0,1e-06]
[1721320874371,2.93828762,63865.0,63864.0,1e-06]
[1721320874597,2.93878762,63865.0,63864.0,1e-06]